{"text_format":"2","workbook":"xlsx","n_sheets":3,"sheets":["Plan1","Plan2","Plan3"],"not_rendered":{"charts":0,"images":0,"macros":0,"external_links":0,"defined_names":0,"comments":0,"pivot_tables":0},"unopened":[],"bounds":{"document_bytes":16777216,"sheet_cells":100000,"run_cost":"one","rows_first":2000,"rows_last":500,"rows_between":2000,"halvings":0,"cell_chars":16384,"cell_head_chars":4096},"cells_cut":0,"cells_raw":0,"read":"whole","date_system":"1900"}

{"sheet":"Plan1","index":0,"n_rows":31,"n_cols":6,"rows_kept":31,"cut":false,"hidden":false,"merged":[]}
["Aluno","1VA","2VA","3VA","Final","Situação"]
["Adeilda Carneiro de Araújo Monteiro",1,9,7,8,{"$f":"IF(E2>=7,\"APROVADO\",IF(E2>=3,\"FINAL\",\"REPROVADO\"))","v":"APROVADO"}]
["Antônio Gilberto Dias Soares",6.4,10,8,9,{"$f":"IF(E3>=7,\"APROVADO\",IF(E3>=3,\"FINAL\",\"REPROVADO\"))","v":"APROVADO"}]
["Bruno Alexandre Cadete da Silva",0,0,null,0,"REPROVADO"]
["Cleiton dos Santos",6.5,9.5,null,8,"APROVADO"]
["Eduardo Gaspar",4.4000000000000004,9.5,6,7.75,"APROVADO"]
["Eliane Maria Araújo da Silva",7.5,10,9,9.5,"APROVADO"]
["Erlah",null,9,7,8,"APROVADO"]
["Jerciane Alves da Silva",0,1,1,1,"REPROVADO"]
["João Carlos Costa",8.4,0,10,9.1999999999999993,"APROVADO"]
["João Vitor Santos",1.2,8.5,7,7.75,"APROVADO"]
["Joel Gomes Pereira",6.8000000000000007,7.5,0,7.15,"APROVADO"]
["José Elenildo da Silva",6.4,10,9,9.5,"APROVADO"]
["José Túlio de Oliveira",7.1000000000000005,9,8,8.5,"APROVADO"]
["Joseilton Evangelista de Sousa",0,9.3000000000000007,9,9.15,"APROVADO"]
["Luiz Carlos de França Lima",8.6,2,8,8.3000000000000007,"APROVADO"]
["Luiz Felipe Soares",1,10,9,9.5,"APROVADO"]
["Maria Carolina de Souza",6.3,9,7,8,"APROVADO"]
["Maria Raphaela",null,10,10,10,"APROVADO"]
["Nayara Poliana Moura",7.7,9,null,8.35,"APROVADO"]
["Osmar",1.6,10,9,9.5,"APROVADO"]
["Patricia Michele Viana Torres Galindo",6.7,9,7,8,"APROVADO"]
["Paula Vanessa Mesquita Queiroz",2.7,7,9,8,"APROVADO"]
["Reginaldo Araújo Freitas",7.4,8,null,7.7,"APROVADO"]
["Renata do Amaral Mesquita",6.4,8.5,9,8.75,"APROVADO"]
["Risoneide",null,7.2,8,7.6,"APROVADO"]
["Salvecy Pereira de Melo",2,9.5,7,8.25,"APROVADO"]
["Suelen Guedes ",4,8,8,8,"APROVADO"]
["Tarcila Inez Barbosa",7,9.5,null,8.25,"APROVADO"]
["Thayse",4,6,6,6,"FINAL"]
["Verônica Roque Batista",7.6,10,7,8.8000000000000007,"APROVADO"]

{"sheet":"Plan2","index":1,"n_rows":0,"n_cols":0,"rows_kept":0,"cut":false,"hidden":false,"merged":[]}

{"sheet":"Plan3","index":2,"n_rows":0,"n_cols":0,"rows_kept":0,"cut":false,"hidden":false,"merged":[]}